[Event "Titled Tuesday Blitz October 26 2021"]
[White "Carnicelli, Valerio"]
[Black "Obolenskikh, Dmitry"]
[WhiteFideId "856185"]
[BlackFideId "4156013"]
[WhiteElo "2332"]
[BlackElo "2541"]
[Result "1-0"]
[Round "10"]
[TimeControl "180+1"]
[Date "2021.10.26"]
[WhiteClock "0:01:40"]
[BlackClock "0:00:33"]

1. e4 {[%clk 0:03:00]}  e5 {[%clk 0:02:59]} 2. Nf3 {[%clk 0:03:01]}  Nc6 {[%clk 0:03:00]} 3. d4 {[%clk 0:03:01]}  exd4 {[%clk 0:02:59]} 4. Nxd4 {[%clk 0:03:02]}  Bc5 {[%clk 0:02:59]} 5. Nf5 {[%clk 0:03:02]}  d5 {[%clk 0:02:58]} 6. Nxg7+ {[%clk 0:03:02]}  Kf8 {[%clk 0:02:47]} 7. Nh5 {[%clk 0:03:02]}  Qh4 {[%clk 0:01:57]} 8. Ng3 {[%clk 0:03:02]}  Nf6 {[%clk 0:01:50]} 9. Be2 {[%clk 0:03:01]}  Rg8 {[%clk 0:01:47]} 10. Nc3 {[%clk 0:03:00]}  dxe4 {[%clk 0:01:43]} 11. O-O {[%clk 0:02:53]}  Be6 {[%clk 0:01:43]} 12. Be3 {[%clk 0:02:52]}  Bd6 {[%clk 0:01:43]} 13. Qc1 {[%clk 0:02:45]}  Rg6 {[%clk 0:01:24]} 14. Rd1 {[%clk 0:02:41]}  Re8 {[%clk 0:01:21]} 15. a4 {[%clk 0:02:25]}  Be5 {[%clk 0:01:18]} 16. a5 {[%clk 0:02:24]}  a6 {[%clk 0:01:16]} 17. Ra4 {[%clk 0:02:23]}  Kg8 {[%clk 0:00:59]} 18. Ncxe4 {[%clk 0:02:19]}  Bxg3 {[%clk 0:00:57]} 19. Nxf6+ {[%clk 0:02:18]}  Qxf6 {[%clk 0:00:58]} 20. hxg3 {[%clk 0:02:16]}  Kh8 {[%clk 0:00:56]} 21. Bf3 {[%clk 0:02:13]}  Ne5 {[%clk 0:00:51]} 22. Rf4 {[%clk 0:02:06]}  Qg7 {[%clk 0:00:47]} 23. Bxb7 {[%clk 0:02:03]}  Rg4 {[%clk 0:00:41]} 24. Rxg4 {[%clk 0:02:00]}  Nxg4 {[%clk 0:00:41]} 25. Bd4 {[%clk 0:01:59]}  f6 {[%clk 0:00:41]} 26. Qf4 {[%clk 0:01:58]}  Rf8 {[%clk 0:00:41]} 27. Bxa6 {[%clk 0:01:56]}  Qg6 {[%clk 0:00:39]} 28. Be2 {[%clk 0:01:50]}  Qh5 {[%clk 0:00:35]} 29. Bxg4 {[%clk 0:01:49]}  Bxg4 {[%clk 0:00:35]} 30. Bxf6+ {[%clk 0:01:43]}  Kg8 {[%clk 0:00:35]} 31. Qc4+ {[%clk 0:01:43]}  Qf7 {[%clk 0:00:33]} 32. Qxg4+ {[%clk 0:01:40]} 1-0


[Site "https://www.chess.com"]

[Event "Titled Tuesday Blitz October 26 2021"]
[White "Costachi, Mihnea"]
[Black "Kamsky, Gata"]
[WhiteFideId "1217518"]
[BlackFideId "2000024"]
[WhiteElo "2482"]
[BlackElo "2603"]
[Result "1/2-1/2"]
[Round "10"]
[TimeControl "180+1"]
[Date "2021.10.26"]
[WhiteClock "0:00:03"]
[BlackClock "0:00:34"]

1. d4 {[%clk 0:03:00]}  g6 {[%clk 0:02:59]} 2. c4 {[%clk 0:03:00]}  Bg7 {[%clk 0:02:59]} 3. Nc3 {[%clk 0:03:00]}  b6 {[%clk 0:02:59]} 4. e4 {[%clk 0:02:58]}  Bb7 {[%clk 0:02:59]} 5. Be2 {[%clk 0:02:57]}  d6 {[%clk 0:02:56]} 6. Be3 {[%clk 0:02:55]}  e6 {[%clk 0:02:56]} 7. Qd2 {[%clk 0:02:55]}  Nd7 {[%clk 0:02:56]} 8. f3 {[%clk 0:02:55]}  Bh6 {[%clk 0:02:50]} 9. Bxh6 {[%clk 0:02:49]}  Qh4+ {[%clk 0:02:50]} 10. g3 {[%clk 0:02:50]}  Qxh6 {[%clk 0:02:51]} 11. Qxh6 {[%clk 0:02:46]}  Nxh6 {[%clk 0:02:50]} 12. Nh3 {[%clk 0:02:38]}  Ke7 {[%clk 0:02:48]} 13. O-O-O {[%clk 0:02:36]}  f6 {[%clk 0:02:44]} 14. Nf2 {[%clk 0:02:32]}  Nf7 {[%clk 0:02:42]} 15. f4 {[%clk 0:02:30]}  a6 {[%clk 0:02:28]} 16. Rhe1 {[%clk 0:02:30]}  Rhe8 {[%clk 0:02:27]} 17. Bf3 {[%clk 0:02:25]}  Kf8 {[%clk 0:02:27]} 18. Bh1 {[%clk 0:02:17]}  Kg7 {[%clk 0:02:26]} 19. e5 {[%clk 0:02:14]}  Bxh1 {[%clk 0:02:26]} 20. exf6+ {[%clk 0:02:15]}  Nxf6 {[%clk 0:02:26]} 21. Rxh1 {[%clk 0:02:13]}  e5 {[%clk 0:02:25]} 22. dxe5 {[%clk 0:02:03]}  dxe5 {[%clk 0:02:25]} 23. fxe5 {[%clk 0:02:03]}  Nxe5 {[%clk 0:02:24]} 24. b3 {[%clk 0:02:03]}  Rad8 {[%clk 0:02:15]} 25. Rxd8 {[%clk 0:02:00]}  Rxd8 {[%clk 0:02:15]} 26. Re1 {[%clk 0:02:00]}  Re8 {[%clk 0:01:57]} 27. Kc2 {[%clk 0:01:49]}  g5 {[%clk 0:01:54]} 28. Re3 {[%clk 0:01:39]}  g4 {[%clk 0:01:47]} 29. Nd5 {[%clk 0:01:35]}  Nxd5 {[%clk 0:01:40]} 30. cxd5 {[%clk 0:01:36]}  Rf8 {[%clk 0:01:38]} 31. Nd3 {[%clk 0:01:35]}  Nf3 {[%clk 0:01:35]} 32. Nf4 {[%clk 0:01:18]}  Kf6 {[%clk 0:01:24]} 33. h3 {[%clk 0:01:12]}  Kf5 {[%clk 0:01:23]} 34. Re7 {[%clk 0:01:04]}  gxh3 {[%clk 0:01:22]} 35. Nxh3 {[%clk 0:01:04]}  Kg4 {[%clk 0:01:19]} 36. Nf4 {[%clk 0:01:00]}  Kxg3 {[%clk 0:01:18]} 37. Ne6 {[%clk 0:00:59]}  Rh8 {[%clk 0:01:14]} 38. Rxc7 {[%clk 0:00:54]}  h5 {[%clk 0:01:07]} 39. d6 {[%clk 0:00:54]}  h4 {[%clk 0:01:03]} 40. Rg7+ {[%clk 0:00:53]}  Kf2 {[%clk 0:01:02]} 41. d7 {[%clk 0:00:51]}  h3 {[%clk 0:00:56]} 42. d8=Q {[%clk 0:00:45]}  Rxd8 {[%clk 0:00:56]} 43. Nxd8 {[%clk 0:00:46]}  h2 {[%clk 0:00:56]} 44. Rh7 {[%clk 0:00:47]}  Kg3 {[%clk 0:00:57]} 45. Rxh2 {[%clk 0:00:31]}  Nxh2 {[%clk 0:00:55]} 46. Kd3 {[%clk 0:00:23]}  Kf4 {[%clk 0:00:53]} 47. Kd4 {[%clk 0:00:24]}  Nf3+ {[%clk 0:00:47]} 48. Kd5 {[%clk 0:00:24]}  Ne5 {[%clk 0:00:47]} 49. Nc6 {[%clk 0:00:16]}  Nd3 {[%clk 0:00:46]} 50. b4 {[%clk 0:00:14]}  Ke3 {[%clk 0:00:44]} 51. a4 {[%clk 0:00:13]}  Nb2 {[%clk 0:00:43]} 52. a5 {[%clk 0:00:12]}  bxa5 {[%clk 0:00:43]} 53. bxa5 {[%clk 0:00:12]}  Kd3 {[%clk 0:00:42]} 54. Kc5 {[%clk 0:00:08]}  Kc3 {[%clk 0:00:41]} 55. Ne5 {[%clk 0:00:07]}  Na4+ {[%clk 0:00:35]} 56. Kd5 {[%clk 0:00:03]}  Kb4 {[%clk 0:00:35]} 57. Nc6+ {[%clk 0:00:03]}  Kb5 {[%clk 0:00:36]} 58. Nb8 {[%clk 0:00:04]}  Nc5 {[%clk 0:00:34]} 59. Nxa6 {[%clk 0:00:03]}  Nxa6 {[%clk 0:00:34]} 60. Ke5 {[%clk 0:00:03]}  Kxa5 {[%clk 0:00:34]} 1/2-1/2


[Site "https://www.chess.com"]

[Event "Titled Tuesday Blitz October 26 2021"]
[White "Golubev, Mikhail"]
[Black "Remizov, Yaroslav"]
[WhiteFideId "14100983"]
[BlackFideId "34134015"]
[WhiteElo "2374"]
[BlackElo "2375"]
[Result "1-0"]
[Round "10"]
[TimeControl "180+1"]
[Date "2021.10.26"]
[WhiteClock "0:00:54"]
[BlackClock "0:00:02"]

1. e4 {[%clk 0:03:00]}  Nc6 {[%clk 0:02:53]} 2. Nf3 {[%clk 0:02:59]}  d6 {[%clk 0:02:53]} 3. d4 {[%clk 0:02:56]}  e5 {[%clk 0:02:54]} 4. Bb5 {[%clk 0:02:55]}  Bg4 {[%clk 0:02:53]} 5. dxe5 {[%clk 0:02:50]}  dxe5 {[%clk 0:02:52]} 6. Qxd8+ {[%clk 0:02:45]}  Rxd8 {[%clk 0:02:53]} 7. Nbd2 {[%clk 0:02:40]}  f6 {[%clk 0:02:47]} 8. c3 {[%clk 0:02:40]}  Ne7 {[%clk 0:02:44]} 9. h3 {[%clk 0:02:36]}  Be6 {[%clk 0:02:42]} 10. Bc4 {[%clk 0:02:36]}  Kf7 {[%clk 0:02:40]} 11. Ke2 {[%clk 0:02:35]}  Ng6 {[%clk 0:02:34]} 12. g3 {[%clk 0:02:30]}  h5 {[%clk 0:02:34]} 13. Bxe6+ {[%clk 0:02:26]}  Kxe6 {[%clk 0:02:33]} 14. a4 {[%clk 0:02:26]}  h4 {[%clk 0:02:30]} 15. Nc4 {[%clk 0:02:25]}  a5 {[%clk 0:01:51]} 16. Ne3 {[%clk 0:02:24]}  Rd7 {[%clk 0:01:32]} 17. Nf5 {[%clk 0:02:16]}  hxg3 {[%clk 0:01:31]} 18. fxg3 {[%clk 0:02:17]}  Bc5 {[%clk 0:01:27]} 19. h4 {[%clk 0:02:13]}  Kf7 {[%clk 0:01:14]} 20. h5 {[%clk 0:02:05]}  Nge7 {[%clk 0:01:13]} 21. Nxe7 {[%clk 0:01:56]}  Nxe7 {[%clk 0:01:10]} 22. g4 {[%clk 0:01:55]}  Ke6 {[%clk 0:01:09]} 23. Bd2 {[%clk 0:01:47]}  Ba7 {[%clk 0:00:56]} 24. Raf1 {[%clk 0:01:42]}  c6 {[%clk 0:00:41]} 25. g5 {[%clk 0:01:41]}  f5 {[%clk 0:00:40]} 26. g6 {[%clk 0:01:42]}  f4 {[%clk 0:00:25]} 27. Ng5+ {[%clk 0:01:41]}  Kf6 {[%clk 0:00:25]} 28. Nf7 {[%clk 0:01:35]}  Re8 {[%clk 0:00:24]} 29. Be1 {[%clk 0:01:32]}  Be3 {[%clk 0:00:12]} 30. Bh4+ {[%clk 0:01:26]}  Ke6 {[%clk 0:00:12]} 31. Ng5+ {[%clk 0:01:26]}  Kd6 {[%clk 0:00:11]} 32. Rd1+ {[%clk 0:01:25]}  Nd5 {[%clk 0:00:10]} 33. exd5 {[%clk 0:01:20]}  cxd5 {[%clk 0:00:10]} 34. c4 {[%clk 0:01:15]}  d4 {[%clk 0:00:08]} 35. Ne4+ {[%clk 0:01:14]}  Kc6 {[%clk 0:00:08]} 36. h6 {[%clk 0:01:08]}  Rf8 {[%clk 0:00:06]} 37. h7 {[%clk 0:01:02]}  f3+ {[%clk 0:00:07]} 38. Kd3 {[%clk 0:01:02]}  f2 {[%clk 0:00:02]} 39. Rdf1 {[%clk 0:00:54]} 1-0


[Site "https://www.chess.com"]

[Event "Titled Tuesday Blitz October 26 2021"]
[White "Grischuk, Alexander"]
[Black "Samadov, Read"]
[WhiteFideId "4126025"]
[BlackFideId "13417444"]
[WhiteElo "2757"]
[BlackElo "2084"]
[Result "1-0"]
[Round "10"]
[TimeControl "180+1"]
[Date "2021.10.26"]
[WhiteClock "0:00:46"]
[BlackClock "0:00:02"]

1. e4 {[%clk 0:03:00]}  c5 {[%clk 0:02:59]} 2. Nc3 {[%clk 0:03:00]}  d6 {[%clk 0:02:59]} 3. d4 {[%clk 0:03:00]}  cxd4 {[%clk 0:02:59]} 4. Qxd4 {[%clk 0:03:01]}  Nc6 {[%clk 0:02:59]} 5. Qd2 {[%clk 0:03:01]}  g6 {[%clk 0:02:59]} 6. b3 {[%clk 0:03:02]}  Bh6 {[%clk 0:02:59]} 7. f4 {[%clk 0:03:02]}  Nf6 {[%clk 0:03:00]} 8. Bb2 {[%clk 0:03:02]}  O-O {[%clk 0:03:00]} 9. O-O-O {[%clk 0:03:02]}  a5 {[%clk 0:02:58]} 10. a4 {[%clk 0:03:01]}  Nb4 {[%clk 0:02:54]} 11. Kb1 {[%clk 0:02:58]}  Bg4 {[%clk 0:02:51]} 12. Be2 {[%clk 0:02:56]}  Bxe2 {[%clk 0:02:45]} 13. Ngxe2 {[%clk 0:02:56]}  Rc8 {[%clk 0:02:45]} 14. Qe3 {[%clk 0:02:52]}  Qc7 {[%clk 0:02:10]} 15. Rd2 {[%clk 0:02:47]}  Rfd8 {[%clk 0:01:42]} 16. Rhd1 {[%clk 0:02:47]}  Qc6 {[%clk 0:01:35]} 17. Nd4 {[%clk 0:02:36]}  Qe8 {[%clk 0:01:34]} 18. Ndb5 {[%clk 0:02:29]}  Bg7 {[%clk 0:01:15]} 19. Qf3 {[%clk 0:02:25]}  Nd7 {[%clk 0:01:08]} 20. h4 {[%clk 0:02:25]}  Nc5 {[%clk 0:01:05]} 21. h5 {[%clk 0:02:20]}  Qd7 {[%clk 0:00:44]} 22. g4 {[%clk 0:02:15]}  Qe6 {[%clk 0:00:39]} 23. e5 {[%clk 0:01:51]}  Nxb3 {[%clk 0:00:26]} 24. cxb3 {[%clk 0:01:48]}  Qxb3 {[%clk 0:00:27]} 25. h6 {[%clk 0:01:23]}  Bxh6 {[%clk 0:00:24]} 26. exd6 {[%clk 0:01:11]}  exd6 {[%clk 0:00:21]} 27. Nxd6 {[%clk 0:00:59]}  Rc6 {[%clk 0:00:06]} 28. Nf5 {[%clk 0:00:47]}  Rxd2 {[%clk 0:00:05]} 29. Nxh6+ {[%clk 0:00:46]}  Kf8 {[%clk 0:00:02]} 30. Rxd2 {[%clk 0:00:46]} 1-0


[Site "https://www.chess.com"]

[Event "Titled Tuesday Blitz October 26 2021"]
[White "Hjartarson, Johann"]
[Black "Shipov, Sergei"]
[WhiteFideId "2300044"]
[BlackFideId "4113624"]
[WhiteElo "2502"]
[BlackElo "2796"]
[Result "1-0"]
[Round "10"]
[TimeControl "180+1"]
[Date "2021.10.26"]
[WhiteClock "0:00:12"]
[BlackClock "0:00:05"]

1. Nf3 {[%clk 0:03:00]}  Nf6 {[%clk 0:02:59]} 2. g3 {[%clk 0:03:00]}  d5 {[%clk 0:02:58]} 3. b4 {[%clk 0:02:59]}  Bg4 {[%clk 0:02:56]} 4. Ne5 {[%clk 0:02:53]}  Bh5 {[%clk 0:02:56]} 5. Bb2 {[%clk 0:02:51]}  e6 {[%clk 0:02:56]} 6. a3 {[%clk 0:02:51]}  Nbd7 {[%clk 0:02:44]} 7. Bg2 {[%clk 0:02:49]}  a5 {[%clk 0:02:44]} 8. b5 {[%clk 0:02:47]}  a4 {[%clk 0:02:44]} 9. O-O {[%clk 0:02:34]}  Bd6 {[%clk 0:02:40]} 10. d4 {[%clk 0:02:33]}  O-O {[%clk 0:02:38]} 11. Nd2 {[%clk 0:02:32]}  Nb6 {[%clk 0:01:46]} 12. c4 {[%clk 0:02:28]}  dxc4 {[%clk 0:01:46]} 13. Ndxc4 {[%clk 0:02:26]}  Nxc4 {[%clk 0:01:37]} 14. Nxc4 {[%clk 0:02:25]}  Qd7 {[%clk 0:01:36]} 15. Bxb7 {[%clk 0:01:58]}  Qxb5 {[%clk 0:01:35]} 16. Bxa8 {[%clk 0:01:57]}  Qxc4 {[%clk 0:01:16]} 17. Bf3 {[%clk 0:01:52]}  Bxf3 {[%clk 0:01:16]} 18. exf3 {[%clk 0:01:51]}  Rb8 {[%clk 0:01:16]} 19. Rb1 {[%clk 0:01:34]}  Rb3 {[%clk 0:01:00]} 20. Re1 {[%clk 0:01:15]}  Nd5 {[%clk 0:00:57]} 21. Kg2 {[%clk 0:01:04]}  Qb5 {[%clk 0:00:46]} 22. Ba1 {[%clk 0:00:59]}  Bxa3 {[%clk 0:00:46]} 23. Qc2 {[%clk 0:00:55]}  h6 {[%clk 0:00:41]} 24. Qe4 {[%clk 0:00:47]}  Bd6 {[%clk 0:00:34]} 25. h4 {[%clk 0:00:43]}  g6 {[%clk 0:00:26]} 26. h5 {[%clk 0:00:38]}  gxh5 {[%clk 0:00:18]} 27. Rxb3 {[%clk 0:00:34]}  axb3 {[%clk 0:00:17]} 28. Bb2 {[%clk 0:00:32]}  Nf6 {[%clk 0:00:09]} 29. Qh4 {[%clk 0:00:28]}  Qg5 {[%clk 0:00:09]} 30. Ra1 {[%clk 0:00:24]}  Nd5 {[%clk 0:00:07]} 31. Qe4 {[%clk 0:00:19]}  Qd2 {[%clk 0:00:06]} 32. Ra8+ {[%clk 0:00:17]}  Kg7 {[%clk 0:00:05]} 33. Ba3 {[%clk 0:00:12]} 1-0


[Site "https://www.chess.com"]

[Event "Titled Tuesday Blitz October 26 2021"]
[White "Ibarra Jerez, Jose Carlos"]
[Black "Tregubov, Pavel V."]
[WhiteFideId "2226332"]
[BlackFideId "4115341"]
[WhiteElo "2626"]
[BlackElo "2423"]
[Result "1-0"]
[Round "10"]
[TimeControl "180+1"]
[Date "2021.10.26"]
[WhiteClock "0:00:21"]
[BlackClock "0:00:37"]

1. d4 {[%clk 0:03:00]}  Nf6 {[%clk 0:02:59]} 2. Bf4 {[%clk 0:03:00]}  d5 {[%clk 0:02:58]} 3. e3 {[%clk 0:03:01]}  c5 {[%clk 0:02:58]} 4. Nf3 {[%clk 0:03:00]}  Nc6 {[%clk 0:02:58]} 5. Nbd2 {[%clk 0:03:01]}  cxd4 {[%clk 0:02:57]} 6. exd4 {[%clk 0:03:01]}  Bf5 {[%clk 0:02:58]} 7. Bb5 {[%clk 0:03:00]}  e6 {[%clk 0:02:58]} 8. O-O {[%clk 0:02:58]}  Bd6 {[%clk 0:02:57]} 9. Bxd6 {[%clk 0:02:47]}  Qxd6 {[%clk 0:02:57]} 10. Ne5 {[%clk 0:02:46]}  O-O {[%clk 0:02:56]} 11. Bxc6 {[%clk 0:02:46]}  bxc6 {[%clk 0:02:55]} 12. Nb3 {[%clk 0:02:46]}  Rab8 {[%clk 0:02:51]} 13. Qc1 {[%clk 0:02:44]}  Ne8 {[%clk 0:02:14]} 14. Nc5 {[%clk 0:02:42]}  f6 {[%clk 0:02:14]} 15. Ned7 {[%clk 0:02:41]}  e5 {[%clk 0:02:08]} 16. Nxb8 {[%clk 0:02:36]}  Qxb8 {[%clk 0:02:04]} 17. c3 {[%clk 0:02:35]}  Nd6 {[%clk 0:02:03]} 18. Re1 {[%clk 0:02:34]}  Re8 {[%clk 0:02:02]} 19. b3 {[%clk 0:02:32]}  h5 {[%clk 0:02:00]} 20. a4 {[%clk 0:02:29]}  e4 {[%clk 0:02:00]} 21. Qf4 {[%clk 0:02:28]}  g5 {[%clk 0:01:56]} 22. Qd2 {[%clk 0:02:26]}  h4 {[%clk 0:01:56]} 23. f3 {[%clk 0:02:21]}  Kg7 {[%clk 0:01:55]} 24. fxe4 {[%clk 0:02:19]}  dxe4 {[%clk 0:01:55]} 25. d5 {[%clk 0:02:14]}  Re5 {[%clk 0:01:45]} 26. c4 {[%clk 0:02:08]}  cxd5 {[%clk 0:01:45]} 27. cxd5 {[%clk 0:02:08]}  h3 {[%clk 0:01:45]} 28. Qd4 {[%clk 0:01:54]}  hxg2 {[%clk 0:01:41]} 29. Rad1 {[%clk 0:01:50]}  Kg6 {[%clk 0:01:29]} 30. Rd2 {[%clk 0:01:47]}  Qh8 {[%clk 0:01:25]} 31. Rxg2 {[%clk 0:01:46]}  Qh3 {[%clk 0:01:23]} 32. Rg3 {[%clk 0:01:46]}  Qh4 {[%clk 0:01:23]} 33. Qf2 {[%clk 0:01:34]}  Bc8 {[%clk 0:01:14]} 34. Ne6 {[%clk 0:01:26]}  Nf5 {[%clk 0:01:07]} 35. Rg2 {[%clk 0:01:10]}  Qxf2+ {[%clk 0:01:02]} 36. Rxf2 {[%clk 0:01:10]}  Rxd5 {[%clk 0:01:01]} 37. Rxe4 {[%clk 0:01:01]}  Rd1+ {[%clk 0:00:56]} 38. Rf1 {[%clk 0:01:01]}  Rd2 {[%clk 0:00:56]} 39. Nc5 {[%clk 0:00:58]}  Nh4 {[%clk 0:00:53]} 40. Re3 {[%clk 0:00:32]}  a5 {[%clk 0:00:46]} 41. Rxf6+ {[%clk 0:00:31]}  Kh5 {[%clk 0:00:40]} 42. h3 {[%clk 0:00:24]}  Rc2 {[%clk 0:00:39]} 43. Ne4 {[%clk 0:00:22]}  Rg2+ {[%clk 0:00:37]} 44. Kf1 {[%clk 0:00:22]}  Bb7 {[%clk 0:00:37]} 45. Ng3+ {[%clk 0:00:21]} 1-0


[Site "https://www.chess.com"]

[Event "Titled Tuesday Blitz October 26 2021"]
[White "Jobava, Baadur"]
[Black "Nakamura, Hikaru"]
[WhiteFideId "13601520"]
[BlackFideId "2016192"]
[WhiteElo "2731"]
[BlackElo "2884"]
[Result "0-1"]
[Round "10"]
[TimeControl "180+1"]
[Date "2021.10.26"]
[WhiteClock "0:00:01"]
[BlackClock "0:00:03"]

1. e4 {[%clk 0:03:00]}  e5 {[%clk 0:02:59]} 2. Nf3 {[%clk 0:03:00]}  Nc6 {[%clk 0:02:59]} 3. d4 {[%clk 0:03:01]}  exd4 {[%clk 0:02:59]} 4. Nxd4 {[%clk 0:03:02]}  Bc5 {[%clk 0:02:57]} 5. Nb3 {[%clk 0:03:00]}  Bb6 {[%clk 0:02:57]} 6. a4 {[%clk 0:03:00]}  a6 {[%clk 0:02:54]} 7. Nc3 {[%clk 0:03:00]}  Nf6 {[%clk 0:02:53]} 8. Bd3 {[%clk 0:02:59]}  h6 {[%clk 0:02:53]} 9. O-O {[%clk 0:02:55]}  d6 {[%clk 0:02:53]} 10. a5 {[%clk 0:02:50]}  Ba7 {[%clk 0:02:53]} 11. Qe1 {[%clk 0:02:40]}  Be6 {[%clk 0:02:25]} 12. Be3 {[%clk 0:02:16]}  Bxe3 {[%clk 0:02:22]} 13. Qxe3 {[%clk 0:02:17]}  Bxb3 {[%clk 0:02:23]} 14. cxb3 {[%clk 0:02:18]}  O-O {[%clk 0:02:23]} 15. Rad1 {[%clk 0:02:04]}  Re8 {[%clk 0:02:19]} 16. f4 {[%clk 0:02:03]}  d5 {[%clk 0:02:06]} 17. e5 {[%clk 0:01:58]}  d4 {[%clk 0:02:06]} 18. Qf3 {[%clk 0:01:29]}  dxc3 {[%clk 0:02:06]} 19. bxc3 {[%clk 0:01:29]}  Nd7 {[%clk 0:01:24]} 20. Bf5 {[%clk 0:01:21]}  Re7 {[%clk 0:01:24]} 21. Qg4 {[%clk 0:01:19]}  Ncb8 {[%clk 0:01:24]} 22. Rd3 {[%clk 0:01:13]}  c6 {[%clk 0:01:13]} 23. Rfd1 {[%clk 0:01:08]}  Qxa5 {[%clk 0:01:12]} 24. Rg3 {[%clk 0:00:58]}  f6 {[%clk 0:00:38]} 25. Qg6 {[%clk 0:00:57]}  Nf8 {[%clk 0:00:33]} 26. Qxf6 {[%clk 0:00:55]}  Qc5+ {[%clk 0:00:26]} 27. Kh1 {[%clk 0:00:54]}  Nbd7 {[%clk 0:00:22]} 28. Qxh6 {[%clk 0:00:52]}  Nxe5 {[%clk 0:00:20]} 29. fxe5 {[%clk 0:00:20]}  Qxe5 {[%clk 0:00:21]} 30. Rf1 {[%clk 0:00:20]}  Qxg3 {[%clk 0:00:11]} 31. Qh5 {[%clk 0:00:03]}  Qxc3 {[%clk 0:00:03]} 32. h4 {[%clk 0:00:01]}  Rae8 {[%clk 0:00:03]} 0-1


[Site "https://www.chess.com"]

[Event "Titled Tuesday Blitz October 26 2021"]
[White "Kislov, Oleg"]
[Black "Sapunov, Evgeny"]
[WhiteFideId "13503774"]
[BlackFideId "4126661"]
[WhiteElo "2252"]
[BlackElo "2470"]
[Result "0-1"]
[Round "10"]
[TimeControl "180+1"]
[Date "2021.10.26"]
[WhiteClock "0:00:05"]
[BlackClock "0:00:45"]

1. d4 {[%clk 0:03:00]}  Nf6 {[%clk 0:02:57]} 2. Nc3 {[%clk 0:03:00]}  d5 {[%clk 0:02:56]} 3. Bg5 {[%clk 0:03:00]}  e6 {[%clk 0:02:57]} 4. e4 {[%clk 0:02:59]}  Bb4 {[%clk 0:02:57]} 5. e5 {[%clk 0:02:59]}  h6 {[%clk 0:02:57]} 6. Bd2 {[%clk 0:02:58]}  Bxc3 {[%clk 0:02:57]} 7. bxc3 {[%clk 0:02:58]}  Ne4 {[%clk 0:02:57]} 8. Qg4 {[%clk 0:02:57]}  Kf8 {[%clk 0:02:57]} 9. Bc1 {[%clk 0:02:54]}  c5 {[%clk 0:02:55]} 10. Bd3 {[%clk 0:02:53]}  Qa5 {[%clk 0:02:50]} 11. Ne2 {[%clk 0:02:50]}  cxd4 {[%clk 0:02:48]} 12. Bxe4 {[%clk 0:02:47]}  dxe4 {[%clk 0:02:47]} 13. Qxe4 {[%clk 0:02:47]}  dxc3 {[%clk 0:02:44]} 14. a4 {[%clk 0:02:47]}  Nc6 {[%clk 0:02:43]} 15. Ba3+ {[%clk 0:02:42]}  Kg8 {[%clk 0:02:43]} 16. Bd6 {[%clk 0:02:42]}  Qd5 {[%clk 0:02:29]} 17. Nxc3 {[%clk 0:02:21]}  Qxe4+ {[%clk 0:02:22]} 18. Nxe4 {[%clk 0:02:22]}  b6 {[%clk 0:02:22]} 19. O-O-O {[%clk 0:01:41]}  Bb7 {[%clk 0:02:17]} 20. Rhe1 {[%clk 0:01:38]}  Kh7 {[%clk 0:02:14]} 21. Re3 {[%clk 0:01:35]}  Rhc8 {[%clk 0:02:12]} 22. Ba3 {[%clk 0:01:18]}  Nxe5 {[%clk 0:02:00]} 23. Nd6 {[%clk 0:01:18]}  Nc4 {[%clk 0:02:00]} 24. Nxc8 {[%clk 0:01:09]}  Nxe3 {[%clk 0:01:58]} 25. fxe3 {[%clk 0:01:01]}  Rxc8 {[%clk 0:01:55]} 26. Rd7 {[%clk 0:00:58]}  Be4 {[%clk 0:01:54]} 27. Rxf7 {[%clk 0:00:57]}  Rxc2+ {[%clk 0:01:53]} 28. Kd1 {[%clk 0:00:57]}  Rxg2 {[%clk 0:01:52]} 29. h4 {[%clk 0:00:46]}  a6 {[%clk 0:01:50]} 30. Bd6 {[%clk 0:00:40]}  Bc2+ {[%clk 0:01:46]} 31. Ke1 {[%clk 0:00:39]}  Bxa4 {[%clk 0:01:46]} 32. Ra7 {[%clk 0:00:37]}  Bb5 {[%clk 0:01:44]} 33. Rb7 {[%clk 0:00:33]}  Rg4 {[%clk 0:01:35]} 34. Be5 {[%clk 0:00:31]}  Bc4 {[%clk 0:01:25]} 35. Rxb6 {[%clk 0:00:24]}  Rxh4 {[%clk 0:01:24]} 36. Kf2 {[%clk 0:00:25]}  Rg4 {[%clk 0:01:19]} 37. Kf3 {[%clk 0:00:23]}  Rg5 {[%clk 0:01:20]} 38. Bf4 {[%clk 0:00:20]}  Rg1 {[%clk 0:01:11]} 39. Rd6 {[%clk 0:00:20]}  a5 {[%clk 0:01:08]} 40. Be5 {[%clk 0:00:17]}  a4 {[%clk 0:01:06]} 41. Rd7 {[%clk 0:00:15]}  a3 {[%clk 0:01:04]} 42. Ra7 {[%clk 0:00:16]}  a2 {[%clk 0:01:04]} 43. Kf2 {[%clk 0:00:16]}  Rg5 {[%clk 0:01:04]} 44. Bd4 {[%clk 0:00:16]}  e5 {[%clk 0:01:02]} 45. Bc3 {[%clk 0:00:16]}  h5 {[%clk 0:01:01]} 46. Ra4 {[%clk 0:00:16]}  Bg8 {[%clk 0:00:58]} 47. Ra5 {[%clk 0:00:15]}  h4 {[%clk 0:00:58]} 48. Rxe5 {[%clk 0:00:15]}  Rxe5 {[%clk 0:00:56]} 49. Bxe5 {[%clk 0:00:15]}  g5 {[%clk 0:00:57]} 50. Kf3 {[%clk 0:00:13]}  Kg6 {[%clk 0:00:56]} 51. Bb2 {[%clk 0:00:12]}  Bd5+ {[%clk 0:00:53]} 52. e4 {[%clk 0:00:11]}  Be6 {[%clk 0:00:53]} 53. Bc3 {[%clk 0:00:11]}  g4+ {[%clk 0:00:51]} 54. Kf4 {[%clk 0:00:11]}  g3 {[%clk 0:00:52]} 55. Kf3 {[%clk 0:00:11]}  Kh5 {[%clk 0:00:50]} 56. e5 {[%clk 0:00:09]}  Kg5 {[%clk 0:00:49]} 57. Bb2 {[%clk 0:00:08]}  Bd5+ {[%clk 0:00:48]} 58. Ke2 {[%clk 0:00:07]}  h3 {[%clk 0:00:47]} 59. e6 {[%clk 0:00:07]}  Bxe6 {[%clk 0:00:46]} 60. Kf3 {[%clk 0:00:05]}  h2 {[%clk 0:00:44]} 61. Kg2 {[%clk 0:00:04]}  Bd5+ {[%clk 0:00:44]} 62. Kxg3 {[%clk 0:00:05]}  h1=Q {[%clk 0:00:44]} 63. Bc1+ {[%clk 0:00:05]}  Kf5 {[%clk 0:00:45]} 0-1


[Site "https://www.chess.com"]